{"text_format":"3","workbook":"xlsx","n_sheets":5,"sheets":["Selected Equip","Auma Actuator","Pumps","Gears","Mixers"],"not_rendered":{"defined_names":2,"comments":2},"read":"whole","date_system":"1900"}

{"sheet":"Selected Equip","index":0,"n_rows":194,"n_cols":10,"rows_kept":194,"hidden":true,"merged":[[4,1,4,9]]}
[{"$nulls":3},"ATTACHMENT A"]
[{"$nulls":3},"PRICING SHEET"]
[{"$nulls":3},"RFQ FOR PUMPS,GEARS,MIXERS, CENTRIFUGES & MISC PARTS, "]
[]
[]
[]
[null,"Centrifuges"]
[null,"Description","Manufacturer","Model No.","Serial No.","UOP","List Price","Discount (Same for all items)","Net Unit Price (list price less discount)","Lead Time   Est. Days ARO"]
[1,"CI ZS224.87.03 -GEAR HOUSING ","Andritz","CYC-ZS/224/87-03 ",null,"EA"]
[2,"CI ZS224.87.15 -AXLE ","Andritz","CYC-ZS/224/87-15 ",null,"EA"]
[3,"CI ZS224.87.16 -OUTER BUSH ","Andritz","CYC-ZS/224/87-16 ",null,"EA"]
[4,"CI ZS224.87.05 -DRIVING FINGER ","Andritz","CYC-ZS/224/87-05 ",null,"EA"]
[5,"CI ZS224.87.06 -DRIVING BUSH ","Andritz","CYC-ZS/224/87-06 ",null,"EA"]
[6,"CI ZS224.87.41 -CYCLOID DISK ","Andritz","CYC-ZS/224/87-41 ",null,"EA"]
[7,"CI ZS224.87.44 -ECCENTRIC ","Andritz","CYC-ZS/224/87-44 ",null,"EA"]
[8,"CI ZS224.87.76 -THRUST WASHER ","Andritz","CYC-ZS/224/87-76 ",null,"EA"]
[9,"CI ZS224.87.50 -RING SPACER ","Andritz","CYC-ZS/224/87-50",null,"EA"]
[10,"JM 28.81 -JOINT ","Andritz","JNT/R/RR-CU-D12.2*18*1 ",null,"EA"]
[]
[null,"Centrifuge Service"]
[null,"ON-SITE SERVICES"]
[]
[null,"Hourly rates shall be all inclusive; no additional travel, lodging, meal or miscellaneous expenses will be authorized."]
[]
[null,"Hourly Rate for Services: $",null,"/HR"]
[]
[null,"Hourly Over-Time Rate for Services: $",null,"/HR"]
[]
[]
[null,"OFF-SITE SERVICES"]
[]
[null,"Hourly Rate for Services: $",null,"/HR"]
[]
[null,"Hourly Over-Time Rate for Services: $",null,"/HR"]
[]
[null,"ON-SITE TRAINING ( COUNTY PROPERTY)"]
[]
[null,"Hourly rates shall be all inclusive; no additional travel, lodging, meal or miscellaneous expenses will be authorized."]
[]
[null,"Hourly Rate for Services: $",null,"/HR"]
[]
[null,"Hourly Over-Time Rate for Services: $",null,"/HR"]
[]
[]
[null,"REMOTE TRAINING ( BY PHONE or ONLINE)"]
[]
[null,"Hourly Rate for Services: $",null,"/HR"]
[]
[null,"Hourly Over-Time Rate for Services: $",null,"/HR"]
[]
[]
[null,"OFF-SITE CONTRACTOR LOCATION TRAINING"]
[]
[null,"Hourly Rate for Services: $",null,"/HR"]
[]
[null,"Hourly Over-Time Rate for Services: $",null,"/HR"]
[]
[null,"Pumps"]
[null,"Description","Manufacturer","Model No.","Serial No.","UOP","List Price","Discount (Same for all items)","Net Unit Price (list price less discount)","Lead Time   Est. Days ARO"]
[1,"MOYNO PROGRESSIVE CAVITY PUMP ","MOYNO INCORP","MOD #2H115G1 CDC SRX",null,"EA"]
[2,"SEAL, GEAR JOINT","MOYNO INCORP","P/N PH087Q",null,"EA"]
[3,"STATOR SUPPORT","MOYNO INCORP"," P/N BH0381",null,"EA"]
[4,"VALVE, BACK PRESSURE 1\" ","MILTON ROY","P/N GVB16C-UV, CPVC",null,"EA"]
[5,"PUMP, MILTON ROY MOD. FR 151-B72, BISULFITE","MILTON ROY","MOD. FR 151-B72, BISULFITE",null,"EA"]
[6,"DAMPENER, PULSATION ","MILTON ROY","MOD. PR-300-2E",null,"EA"]
[7,"PUMP, GOULDS (JET)","GOULDS PUMP","MOD. J5S SAMPLING 1/2 HP,","SERIAL NUMBER: D0926025","EA"]
[8,"PUMP, PULSAFEEDER MOD. 7440H-S-AE, SER. #9867483-1","PULSAFEEDER","MOD. 7440H-S-AE"," SER. #9867483-1","EA"]
[9,"PUMP  PULSAFEEDER","PULSAFEEDER"," MOD. PULSAR 55HL SER. 18CT000333"," MOD. PULSAR 55HL SER. 18CT000333","EA"]
[]
[null,"Pumps Service"]
[null,"ON-SITE SERVICES"]
[]
[null,"Hourly rates shall be all inclusive; no additional travel, lodging, meal or miscellaneous expenses will be authorized."]
[]
[null,"Hourly Rate for Services: $",null,"/HR"]
[]
[null,"Hourly Over-Time Rate for Services: $",null,"/HR"]
[]
[]
[null,"OFF-SITE SERVICES"]
[]
[null,"Hourly Rate for Services: $",null,"/HR"]
[]
[null,"Hourly Over-Time Rate for Services: $",null,"/HR"]
[]
[null,"ON-SITE TRAINING ( COUNTY PROPERTY)"]
[]
[null,"Hourly rates shall be all inclusive; no additional travel, lodging, meal or miscellaneous expenses will be authorized."]
[]
[null,"Hourly Rate for Services: $",null,"/HR"]
[]
[null,"Hourly Over-Time Rate for Services: $",null,"/HR"]
[]
[]
[null,"REMOTE TRAINING ( BY PHONE or ONLINE)"]
[]
[null,"Hourly Rate for Services: $",null,"/HR"]
[]
[null,"Hourly Over-Time Rate for Services: $",null,"/HR"]
[]
[]
[null,"OFF-SITE CONTRACTOR LOCATION TRAINING"]
[]
[null,"Hourly Rate for Services: $",null,"/HR"]
[]
[null,"Hourly Over-Time Rate for Services: $",null,"/HR"]
[]
[]
[null,"Gears"]
[null,"Description","Manufacturer","Model No.","Serial No.","UOP","List Price","Discount (Same for all items)","Net Unit Price (list price less discount)","Lead Time   Est. Days ARO"]
[1,"FLIGHT, FRP 3\" X 6\" X 142\" L, P/N 640-24541","POLYCHEM","P/N 640-24541",null,"EA"]
[2,"SPROCKET, DRIVE NH78, 11-TOOTH","NRG CHAIN CO"," P/N 661-21321-021",null,"EA"]
[]
[null,"Gears Service"]
[null,"ON-SITE SERVICES"]
[]
[null,"Hourly rates shall be all inclusive; no additional travel, lodging, meal or miscellaneous expenses will be authorized."]
[]
[null,"Hourly Rate for Services: $",null,"/HR"]
[]
[null,"Hourly Over-Time Rate for Services: $",null,"/HR"]
[]
[]
[null,"OFF-SITE SERVICES"]
[]
[null,"Hourly Rate for Services: $",null,"/HR"]
[]
[null,"Hourly Over-Time Rate for Services: $",null,"/HR"]
[]
[null,"ON-SITE TRAINING ( COUNTY PROPERTY)"]
[]
[null,"Hourly rates shall be all inclusive; no additional travel, lodging, meal or miscellaneous expenses will be authorized."]
[]
[null,"Hourly Rate for Services: $",null,"/HR"]
[]
[null,"Hourly Over-Time Rate for Services: $",null,"/HR"]
[]
[]
[null,"REMOTE TRAINING ( BY PHONE or ONLINE)"]
[]
[null,"Hourly Rate for Services: $",null,"/HR"]
[]
[null,"Hourly Over-Time Rate for Services: $",null,"/HR"]
[]
[]
[null,"OFF-SITE CONTRACTOR LOCATION TRAINING"]
[]
[null,"Hourly Rate for Services: $",null,"/HR"]
[]
[null,"Hourly Over-Time Rate for Services: $",null,"/HR"]
[]
[]
[null,"Mixers"]
[null,"Description","Manufacturer","Model No.","Serial No.","UOP","List Price","Discount (Same for all items)","Net Unit Price (list price less discount)","Lead Time   Est. Days ARO"]
[1,"SHAFT BOLT, SOCKET HEAD","MASTRRR","P/N 10593-20",null,"EA"]
[2,"INDUCTION UNIT MIXER GAS MASTRRR SERIES 32,","MASTRRR"," MOD. 2366104000","S/N 01J19-06-0048 ","EA"]
[]
[null,"Mixers Service"]
[null,"ON-SITE SERVICES"]
[]
[null,"Hourly rates shall be all inclusive; no additional travel, lodging, meal or miscellaneous expenses will be authorized."]
[]
[null,"Hourly Rate for Services: $",null,"/HR"]
[]
[null,"Hourly Over-Time Rate for Services: $",null,"/HR"]
[]
[]
[null,"OFF-SITE SERVICES"]
[]
[null,"Hourly Rate for Services: $",null,"/HR"]
[]
[null,"Hourly Over-Time Rate for Services: $",null,"/HR"]
[]
[null,"ON-SITE TRAINING ( COUNTY PROPERTY)"]
[]
[null,"Hourly rates shall be all inclusive; no additional travel, lodging, meal or miscellaneous expenses will be authorized."]
[]
[null,"Hourly Rate for Services: $",null,"/HR"]
[]
[null,"Hourly Over-Time Rate for Services: $",null,"/HR"]
[]
[]
[null,"REMOTE TRAINING ( BY PHONE or ONLINE)"]
[]
[null,"Hourly Rate for Services: $",null,"/HR"]
[]
[null,"Hourly Over-Time Rate for Services: $",null,"/HR"]
[]
[]
[null,"OFF-SITE CONTRACTOR LOCATION TRAINING"]
[]
[null,"Hourly Rate for Services: $",null,"/HR"]
[]
[null,"Hourly Over-Time Rate for Services: $",null,"/HR"]

{"sheet":"Auma Actuator","index":1,"n_rows":64,"n_cols":11,"rows_kept":64,"merged":[[3,0,3,10],[5,0,5,11],[7,0,7,1],[7,2,7,10],[8,0,9,0],[8,1,9,1],[8,2,9,2],[8,3,9,3],[8,4,9,4],[8,5,9,5],[8,7,9,7],[8,8,9,8],[8,9,9,9],[8,10,9,10],[37,0,37,8],[40,0,40,3],[41,0,41,3],[42,0,43,3],[43,6,49,10],[49,0,49,3],[54,0,54,3],[58,0,58,2],[61,2,61,3],[63,0,64,4]]}
[]
[{"$nulls":4},"ATTACHMENT A - PRICING SHEET"]
[]
["BIDDERS MUST ENTER PRICING IN US DOLLARS FOR EACH LINE HIGHLIGHTED IN YELLOW BELOW. ITEMS ITEMS LEFT BLANK WILL BE DEEMED AS A NON-BID FOR THAT ITEM AND BIDDERS MAY BE DEEMED NON-RESPONSIVE."]
[]
["The Pricing Schedule list is not all inclusive; other parts may be ordered under this Contract. "]
[]
["Auma Actuators"]
["Item No.","Description","Manufacturer","Model No.","Serial No.","Unit","QTY","Manufacturer Catalog Unit Price","Percentage Discount","Total","Delivery Timeframe"]
[{"$nulls":6},"(A)"]
[0,"SAMPLE Item",{"$nulls":3},"Each",1,{"v":100,"d":"$100.00"},{"v":0.07,"d":"7.00%"},{"$f":"(G11* H11)*(1-I11)","v":{"v":93,"d":"$93.00"}},"Days"]
[1,"ACTUATOR, 30\" X 30\" GATE","AUMA","SA10.1-26A","COMM NO A070353-DS013","Each",1,null,null,{"$f":"(G12* H12)*(1-I12)","v":{"v":0,"d":"$0.00"}}]
[2,"ACTUATOR, 36\" X 48\" GATE","AUMA","SA14.1-26A","COMM NO A070353-DS014","Each",1,null,null,{"$f":"(G13* H13)*(1-I13)","v":{"v":0,"d":"$0.00"}}]
[3,"ACTUATOR, 24\" PLUG VALVE, VALVE VAULT #2","AUMA","SAR07.5-108B/GS160.3/GZ160.3-8","COMM NO A070354-DS006","Each",1,null,null,{"v":0,"d":"$0.00"}]
[4,"ACTUATOR, FLOW CONTROL VALVE","AUMA","SAR10.1-13B/GS100.3","COMM NO A070352","Each",1,null,null,{"v":0,"d":"$0.00"}]
[5,"ACTUATOR, 30\" BUTTERFLY VALVE","AUMA","SA07.5-108B/GS160.3/GZ160.3-8","COMM NO A070352-DS012","Each",1,null,null,{"v":0,"d":"$0.00"}]
[6,"ACTUATOR, 48\" BUTTERFLY, INFLUENT TO EFF FILTERS","AUMA","SA10.1-216B/GS250.3/GZ250.3-16","COMM NO A070352-DS013","Each",1,null,null,{"v":0,"d":"$0.00"}]
[7,"ACTUATOR, 48\" X 18\" GATE","AUMA","SA10.1-26A","COMM NO A070353-DS002","Each",1,null,null,{"v":0,"d":"$0.00"}]
[8,"ACTUATOR, 90\" X 18\" GATE","AUMA","SA07.5-54B","COMM NO A070353-DS029","Each",1,null,null,{"v":0,"d":"$0.00"}]
[9,"ACTUATOR, GATE","AUMA","SA14.1-26A","COMM NO A070353-DS028","Each",1,null,null,{"v":0,"d":"$0.00"}]
[10,"ACTUATOR, 12\" BF VALVE, DISCHARGE, BA BLOWER #1","AUMA","SA07.5-54B/GS63.3 (RR)","COMM NO. A070902-DS010","Each",1,null,null,{"v":0,"d":"$0.00"}]
[11,"ACTUATOR, 12\" BF VALVE, BLOWER DISCHARGE, BLOWOFF","AUMA","SA07.5-54B/GS63.3 (RR)","COMM NO. A070902-DS011","Each",1,null,null,{"v":0,"d":"$0.00"}]
[12,"ACTUATOR, 18\" BF VALVE, DISCHARGE OF BWS PUMP #1","AUMA","SA10.1-13B/GS80.3 (RR)","COMM NO. A070902-DS007","Each",1,null,null,{"v":0,"d":"$0.00"}]
[13,"ACTUATOR, 4\" PLUG VALVE","AUMA","SA07.5-13B/GS50.3","COMM NO A070862-DS001","Each",1,null,null,{"v":0,"d":"$0.00"}]
[14,"ACTUATOR, 24\" BF VALVE, SUCTION OF BWS PUMP #1","AUMA","SA10.1-13B/GS100.3 (RR)","COMM NO. A070902-DS006","Each",1,null,null,{"v":0,"d":"$0.00"}]
[15,"ACTUATOR,PCL INFLUENT GATE","AUMA","SA10.1-26A","COMM NO A070353","Each",1,null,null,{"v":0,"d":"$0.00"}]
[16,"ACTUATOR, 108\" X 60\" GATE","AUMA","SA10.1-108B","COMM NO A070353-DS032","Each",1,null,null,{"v":0,"d":"$0.00"}]
[17,"ACTUATOR, 84\" X 48\" GATE","AUMA","SA10.1-54B","COMM NO A070353-DS033","Each",1,null,null,{"v":0,"d":"$0.00"}]
[18,"ACTUATOR, 84\" X 72\" GATE, PI BACKUP STRUCTURE","AUMA","SA14.1-26A","COMM NO A070353-DS017","Each",1,null,null,{"v":0,"d":"$0.00"}]
[19,"ACTUATOR, 42\" X 96\" GATE, PI BACKUP STRUCTURE","AUMA","SA16.1-26A","COMM NO A070353-DS018","Each",1,null,null,{"v":0,"d":"$0.00"}]
[20,"ACTUATOR, 96\" X 90\" GATE, PI BACKUP STRUCTURE","AUMA","SA16.4-26A","COMM NO A070353-DS016","Each",1,null,null,{"v":0,"d":"$0.00"}]
[21,"ACTUATOR, 84\" X 72\" GATE, PI BACKUP STRUCTURE","AUMA","SA14.1-26A","COMM NO A070353-DS024","Each",1,null,null,{"v":0,"d":"$0.00"}]
[22,"ACTUATOR, 84\" X 72\" GATE, PI BACKUP STRUCTURE","AUMA","SA14.1-26A","COMM NO A070353-DS025","Each",1,null,null,{"v":0,"d":"$0.00"}]
[23,"ACTUATOR, 36\" PLUG VALVE,  SOUTH SIDE OF SAT5","AUMA","SAR10.1-216B/GS250.3GZ250.3-16","COMM NO A070354-DS007","Each",1,null,null,{"v":0,"d":"$0.00"}]
[24,"ACTUATOR, 52\" x 60\" BAFFLE WALL GATE","AUMA","SA14.1-26A","COMM NO A070353-DS020","Each",1,null,null,{"v":0,"d":"$0.00"}]
[25,"ACTUATOR, 60\" X 72\" GATE","AUMA","SA16.1-26A","COMM NO A070353-DS008","Each",1,null,null,{"v":0,"d":"$0.00"}]
[26,"ACTUATOR, 48\" x 18\" GATE","AUMA","SA10.1-26A","COMM NO A070353-DS001","Each",1,null,null,{"v":0,"d":"$0.00"}]
["TOTAL:",{"$nulls":8},{"$f":"SUM(J12:J37)","v":{"v":0,"d":"$0.00"}}]
[]
[]
["Auma Actuator Service"]
["ON-SITE SERVICES"]
["Hourly rates shall be all inclusive; no additional travel, lodging, meal or miscellaneous expenses will be authorized."]
[{"$nulls":6},"HOURLY RATES INCLUDE THE PROVISION OF ALL THINGS NECESSARY FOR PERFORMING\nREPAIRS, INSPECTION, AND MAINTENANCE (NOT COVERED UNDER THE PREVENTIVE\nMAINTENANCE SERVICES) INCLUDING BUT NOT LIMITED TO, LABOR, EQUIPMENT, TOOLS, AND\nTRANSPORTATION TO, FROM AND BETWEEN JOBS, PARKING, TOOLS-OF-THE-TRADE, AND\nMEANS FOR ACCESS, AND CONSUMABLE SUPPLIES.                                                                                                                                                                                               OVERTIME (OVER 8 HOURS OFCONSECUTIVE WORK) RATES SHALL BE TIME AND HALF OF REGULAR HOURLY RATES."]
[]
["On-Site Services Rate",null,"/HR",{"$f":"_xlfn.NUMBERVALUE(B46)","v":{"v":0,"d":"$0.00"}}]
[]
[]
[]
["OFF-SITE SERVICES"]
[]
["Off-Site Services Rate",null,"/HR",{"$f":"_xlfn.NUMBERVALUE(B52)","v":{"v":0,"d":"$0.00"}}]
[]
[]
["TRAINING SERVICES"]
[]
["Training Hourly Rate",null,"/HR",{"$f":"_xlfn.NUMBERVALUE(B57)","v":{"v":0,"d":"$0.00"}}]
[]
["TOTAL",null,null,{"$f":"SUM(D46,D52,D57)","v":{"v":0,"d":"$0.00"}}]
[]
[]
[null,"GRAND TOTAL",{"$f":"SUM(D59,J38)","v":{"v":0,"d":"$0.00"}}]
[]
["NOTE: Overtime Work (OVER 8 HOURS OF CONSECUTIVE WORK) RATES SHALL BE TIME AND HALF OF REGULAR HOURLY RATES."]

{"sheet":"Pumps","index":2,"n_rows":58,"n_cols":12,"rows_kept":58,"hidden":true,"merged":[[5,0,6,0],[5,1,6,1],[5,2,6,2],[5,3,6,3],[5,4,6,4],[5,5,6,5],[5,7,6,7],[5,8,6,8],[18,0,18,10],[21,0,21,3],[22,0,22,3],[31,0,31,3],[37,0,37,3],[46,0,46,3],[53,0,53,3]]}
[]
[{"$nulls":6},"PRICING SCHEDULE"]
["*Yellow Highighted area = Add only unit cost(s) and percent discount. "]
[]
["Pumps"]
["Item No.","Description","Manufacturer","Model No.","Serial No.","Unit","QTY","Manufacturer Catalog Unit Price","Percentage Discount","Unit Price After Discount","Unit Installation cost","Extended Total"]
[{"$nulls":6},"(A)",null,null,"(B)","(C)","A (B+C)"]
[0,"SAMPLE Item",{"$nulls":3},"Each",1,{"v":100,"d":"$100.00"},{"v":0.07,"d":"7.00%"},{"$f":"SUM(H8 - (H8* I8))","v":{"v":93,"d":"$93.00"}},{"v":10,"d":"$10.00"},{"$f":"SUM(K8,J8)*G8","v":{"v":103,"d":"$103.00"}}]
[1,"MOYNO PROGRESSIVE CAVITY PUMP ","MOYNO INCORP","MOD #2H115G1 CDC SRX",null,"Each",1]
[2,"SEAL, GEAR JOINT","MOYNO INCORP","P/N PH087Q",null,"Each",1]
[3,"STATOR SUPPORT","MOYNO INCORP"," P/N BH0381",null,"Each",1]
[4,"VALVE, BACK PRESSURE 1\" ","MILTON ROY","P/N GVB16C-UV, CPVC",null,"Each",1]
[5,"PUMP, MILTON ROY MOD. FR 151-B72, BISULFITE","MILTON ROY","MOD. FR 151-B72, BISULFITE",null,"Each",1]
[6,"DAMPENER, PULSATION ","MILTON ROY","MOD. PR-300-2E",null,"Each",1]
[7,"PUMP, GOULDS (JET)","GOULDS PUMP","MOD. J5S SAMPLING 1/2 HP,","SERIAL NUMBER: D0926025","Each",1]
[8,"PUMP, PULSAFEEDER MOD. 7440H-S-AE, SER. #9867483-1","PULSAFEEDER","MOD. 7440H-S-AE"," SER. #9867483-1","Each",1]
[9,"PUMP  PULSAFEEDER","PULSAFEEDER"," MOD. PULSAR 55HL SER. 18CT000333"," MOD. PULSAR 55HL SER. 18CT000333","Each",1]
[10,10,"JM 28.81 -JOINT ","Andritz","JNT/R/RR-CU-D12.2*18*1 ","Each",1]
["GRAND TOTAL:",{"$nulls":10},{"$f":"SUM(L9:L18)","v":{"v":0,"d":"$0.00"}}]
[]
[]
["Pumps Service"]
["ON-SITE SERVICES"]
[]
["Hourly rates shall be all inclusive; no additional travel, lodging, meal or miscellaneous expenses will be authorized."]
[]
["Hourly Rate for Services: $",null,"/HR"]
[]
["Hourly Over-Time Rate for Services: $",null,"/HR"]
[]
[]
["OFF-SITE SERVICES"]
[]
["Hourly Rate for Services: $",null,"/HR"]
[]
["Hourly Over-Time Rate for Services: $",null,"/HR"]
[]
["ON-SITE TRAINING ( COUNTY PROPERTY)"]
[]
["Hourly rates shall be all inclusive; no additional travel, lodging, meal or miscellaneous expenses will be authorized."]
[]
["Hourly Rate for Services: $",null,"/HR"]
[]
["Hourly Over-Time Rate for Services: $",null,"/HR"]
[]
[]
["REMOTE TRAINING ( BY PHONE or ONLINE)"]
[]
["Hourly Rate for Services: $",null,"/HR"]
[]
["Hourly Over-Time Rate for Services: $",null,"/HR"]
[]
[]
["OFF-SITE CONTRACTOR LOCATION TRAINING"]
[]
["Hourly Rate for Services: $",null,"/HR"]
[]
["Hourly Over-Time Rate for Services: $",null,"/HR"]

{"sheet":"Gears","index":3,"n_rows":50,"n_cols":12,"rows_kept":50,"hidden":true,"merged":[[5,0,6,0],[5,1,6,1],[5,2,6,2],[5,3,6,3],[5,4,6,4],[5,5,6,5],[5,7,6,7],[5,8,6,8],[10,0,10,10],[13,0,13,3],[14,0,14,3],[23,0,23,3],[29,0,29,3],[38,0,38,3],[45,0,45,3]]}
[]
[{"$nulls":6},"PRICING SCHEDULE"]
["*Yellow Highighted area = Add only unit cost(s) and percent discount. "]
[]
["Gears"]
["Item No.","Description","Manufacturer","Model No.","Serial No.","Unit","QTY","Manufacturer Catalog Unit Price","Percentage Discount","Unit Price After Discount","Unit Installation cost","Extended Total"]
[{"$nulls":6},"(A)",null,null,"(B)","(C)","A (B+C)"]
[0,"SAMPLE Item",{"$nulls":3},"Each",1,{"v":100,"d":"$100.00"},{"v":0.07,"d":"7.00%"},{"$f":"SUM(H8 - (H8* I8))","v":{"v":93,"d":"$93.00"}},{"v":10,"d":"$10.00"},{"$f":"SUM(K8,J8)*G8","v":{"v":103,"d":"$103.00"}}]
[1,"FLIGHT, FRP 3\" X 6\" X 142\" L, P/N 640-24541","POLYCHEM","P/N 640-24541",null,"Each",1]
[2,"SPROCKET, DRIVE NH78, 11-TOOTH","NRG CHAIN CO"," P/N 661-21321-021",null,"Each",1]
["GRAND TOTAL:",{"$nulls":10},{"$f":"SUM(L9:L10)","v":{"v":0,"d":"$0.00"}}]
[]
[]
["Gears Service"]
["ON-SITE SERVICES"]
[]
["Hourly rates shall be all inclusive; no additional travel, lodging, meal or miscellaneous expenses will be authorized."]
[]
["Hourly Rate for Services: $",null,"/HR"]
[]
["Hourly Over-Time Rate for Services: $",null,"/HR"]
[]
[]
["OFF-SITE SERVICES"]
[]
["Hourly Rate for Services: $",null,"/HR"]
[]
["Hourly Over-Time Rate for Services: $",null,"/HR"]
[]
["ON-SITE TRAINING ( COUNTY PROPERTY)"]
[]
["Hourly rates shall be all inclusive; no additional travel, lodging, meal or miscellaneous expenses will be authorized."]
[]
["Hourly Rate for Services: $",null,"/HR"]
[]
["Hourly Over-Time Rate for Services: $",null,"/HR"]
[]
[]
["REMOTE TRAINING ( BY PHONE or ONLINE)"]
[]
["Hourly Rate for Services: $",null,"/HR"]
[]
["Hourly Over-Time Rate for Services: $",null,"/HR"]
[]
[]
["OFF-SITE CONTRACTOR LOCATION TRAINING"]
[]
["Hourly Rate for Services: $",null,"/HR"]
[]
["Hourly Over-Time Rate for Services: $",null,"/HR"]

{"sheet":"Mixers","index":4,"n_rows":50,"n_cols":12,"rows_kept":50,"hidden":true,"merged":[[5,0,6,0],[5,1,6,1],[5,2,6,2],[5,3,6,3],[5,4,6,4],[5,5,6,5],[5,7,6,7],[5,8,6,8],[10,0,10,10],[13,0,13,3],[14,0,14,3],[23,0,23,3],[29,0,29,3],[38,0,38,3],[45,0,45,3]]}
[]
[{"$nulls":6},"PRICING SCHEDULE"]
["*Yellow Highighted area = Add only unit cost(s) and percent discount. "]
[]
["Mixers"]
["Item No.","Description","Manufacturer","Model No.","Serial No.","Unit","QTY","Manufacturer Catalog Unit Price","Percentage Discount","Unit Price After Discount","Unit Installation cost","Extended Total"]
[{"$nulls":6},"(A)",null,null,"(B)","(C)","A (B+C)"]
[0,"SAMPLE Item",{"$nulls":3},"Each",1,{"v":100,"d":"$100.00"},{"v":0.07,"d":"7.00%"},{"$f":"SUM(H8 - (H8* I8))","v":{"v":93,"d":"$93.00"}},{"v":10,"d":"$10.00"},{"$f":"SUM(K8,J8)*G8","v":{"v":103,"d":"$103.00"}}]
[1,"SHAFT BOLT, SOCKET HEAD","MASTRRR","P/N 10593-20",null,"Each",1]
[2,"INDUCTION UNIT MIXER GAS MASTRRR SERIES 32,","MASTRRR"," MOD. 2366104000","S/N 01J19-06-0048 ","Each",1]
["GRAND TOTAL:",{"$nulls":10},{"$f":"SUM(L9:L10)","v":{"v":0,"d":"$0.00"}}]
[]
[]
["Mixers Service"]
["ON-SITE SERVICES"]
[]
["Hourly rates shall be all inclusive; no additional travel, lodging, meal or miscellaneous expenses will be authorized."]
[]
["Hourly Rate for Services: $",null,"/HR"]
[]
["Hourly Over-Time Rate for Services: $",null,"/HR"]
[]
[]
["OFF-SITE SERVICES"]
[]
["Hourly Rate for Services: $",null,"/HR"]
[]
["Hourly Over-Time Rate for Services: $",null,"/HR"]
[]
["ON-SITE TRAINING ( COUNTY PROPERTY)"]
[]
["Hourly rates shall be all inclusive; no additional travel, lodging, meal or miscellaneous expenses will be authorized."]
[]
["Hourly Rate for Services: $",null,"/HR"]
[]
["Hourly Over-Time Rate for Services: $",null,"/HR"]
[]
[]
["REMOTE TRAINING ( BY PHONE or ONLINE)"]
[]
["Hourly Rate for Services: $",null,"/HR"]
[]
["Hourly Over-Time Rate for Services: $",null,"/HR"]
[]
[]
["OFF-SITE CONTRACTOR LOCATION TRAINING"]
[]
["Hourly Rate for Services: $",null,"/HR"]
[]
["Hourly Over-Time Rate for Services: $",null,"/HR"]